Cogmind - Beta 14 @@@ ROGUE MODE // 2024.09.23 @ 03:24:36 Player: Rq Result: Smashed by cave-in Performance ------------- Evolutions (1) 500 Regions Visited (4) 800 Robots Destroyed (99) 495 Value Destroyed (2472) 2472 Prototype IDs (6) 120 Alien Tech Used (0) 0 Bonus (672) 672 TOTAL SCORE: 5059 Bonus ------- High Alert Combat Kills 540 Follower Combat Kills 132 Cogmind --------- Core Integrity 0/400 Matter 176/300 Energy 275/275 System Corruption 5% Temperature Cool (5) Movement Core (1600) Ox31 Location -9/Mines Parts ------- > --- POWER (1) -------- Deuterium Engine > --- PROPULSION (2) --- (None) > --- UTILITY (4) ------ Huge Storage Unit Terrain Scan Processor Light Armor Plating > --- WEAPON (2) ------- Light Cannon > --- INVENTORY (25) --- Heavy Ion Engine Heavy Ion Engine Heavy Ion Engine Heavy Ion Engine Deuterium Engine Light Treads Light Treads Light Treads Cooling System High-capacity Storage Unit High-capacity Matter Pod (200) Sensor Array Improved Signal Interpreter Medium Armor Plating Hardened Light Armor Plating Shield Generator Shield Generator High-powered Tractor Beam Maul Peak State ------------ > --- POWER ------------ Heavy Ion Engine > --- PROPULSION ------- Light Treads Light Treads > --- UTILITY ---------- Huge Storage Unit Hardened Light Armor Plating Hacking Suite Hacking Suite > --- WEAPON ----------- Improved Light Cannon Assault Cannon > --- INVENTORY -------- Heavy Ion Engine Heavy Ion Engine Deuterium Engine Deuterium Engine Deuterium Engine Deuterium Engine Light Treads Light Treads Light Treads Compact Wheel Cooling System Large Storage Unit High-capacity Matter Pod Sensor Array Improved Signal Interpreter Light Armor Plating Medium Armor Plating Hardened Light Armor Plating Shield Generator Shield Generator High-powered Tractor Beam Light Cannon Rocket Launcher Rocket Launcher Ripper [Rating: 24] Favorites ----------- Power Heavy Ion Engine Engine Heavy Ion Engine Propulsion Light Treads Treads Light Treads Leg Aluminum Leg Wheel Compact Wheel Utility Hacking Suite Device Improved Terrain Scanner Storage Huge Storage Unit Processor Terrain Scan Processor Hackware Hacking Suite Protection Hardened Light Armor Plating Weapon Assault Cannon Energy Gun Medium Laser Ballistic Gun Shotgun Ballistic Cannon Assault Cannon Launcher Rocket Launcher Impact Weapon Maul Slashing Weapon Ripper Build | -11 -10 -10 -9 -9 ------- Run | Yrd Mat Min Mat Min Slots Evolved 2 | . . . 2 . Power . | . . . . . Propulsion . | . . . . . Utility 2 | . . . 2 . Weapon . | . . . . . Parts Attached 59 | 1 17 3 30 8 Power 6 | . 1 1 4 . Engine 6 | . 1 1 4 . Core . | . . . . . Reactor . | . . . . . Propulsion 12 | . 5 . 6 1 Treads 11 | . 5 . 6 . Leg . | . . . . . Wheel 1 | . . . . 1 Hover . | . . . . . Flight . | . . . . . Utility 21 | 1 3 1 13 3 Device 4 | 1 . . 3 . Storage 2 | . 1 . 1 . Processor 1 | . . . 1 . Hackware 2 | . . . 2 . Protection 12 | . 2 1 6 3 Artifact . | . . . . . Weapon 20 | . 8 1 7 4 Energy Gun . | . . . . . Energy Cannon . | . . . . . Ballistic Gun 3 | . 3 . . . Ballistic Cannon 7 | . 2 1 3 1 Launcher 8 | . 3 . 3 2 Special Weapon . | . . . . . Impact Weapon 1 | . . . . 1 Slashing Weapon 1 | . . . 1 . Piercing Weapon . | . . . . . Special Melee Weapon . | . . . . . Unidentified Prototypes 1 | . . . 1 . Parts Lost 14 | . . . 5 9 Power . | . . . . . Propulsion 3 | . . . 1 2 Utility 7 | . . . 4 3 Weapon 4 | . . . . 4 Highest Loss Streak 9 | . . . 2 9 To Critical Strikes . | . . . . . Average Slot Usage (%) 99 | . 99 100 99 71 Engine 11 | . 14 14 11 11 Treads 23 | . 26 28 21 3 Storage 11 | . 14 14 11 11 Processor 1 | . . . 2 11 Hackware 11 | . . . 16 . Protection 13 | . 11 14 13 18 Ballistic Gun 3 | . 19 . . . Ballistic Cannon 17 | . 6 28 17 7 Launcher 3 | . . . 4 . Peak Build Rating 24 | 9 12 15 24 20 Average Rating 18 | 6 9 12 21 14 On Entrance 11 | 6 9 9 15 20 Naked Turns . | . . . . . Heaviest Build 106 | 12 34 45 106 97 Greatest Support 40 | 20 40 40 40 16 Greatest Overweight (x) 6 | . . 1 2 6 Average Overweight (x) 1 | . . . 1 5 Largest Inventory Capacity 25 | 8 15 15 25 25 Average Capacity 19 | 8 12 15 22 25 Most Carried 25 | 7 15 15 25 25 Average Carried 18 | 6 10 14 20 22 Final Capacity 25 | 8 15 15 25 25 Final Carried 25 | 7 15 15 25 19 Class Distribution -------------------- 52% | Hacker-Mutant 36% | Mutant 11% | Scavenger-Mutant Dominant Class ---------------- Mutant | -10/Materials Mutant | -10/Mines Hacker-Mutant | -9/Materials Mutant | -9/Mines Resources | -11 -10 -10 -9 -9 ----------- Run | Yrd Mat Min Mat Min Matter Collected 2568 | 205 491 87 1785 . Remotely 375 | . . . 375 . Salvage Created 2455 | 95 521 134 1643 62 Parts 173 | 5 29 6 126 7 Haulers Intercepted 6 | . 1 . 5 . Recyclers Shooed 1 | . . . 1 . Parts Field Recycled . | . . . . . Retrieved Matter . | . . . . . Parts Self-Destructed . | . . . . . Prevented . | . . . . . Kills | -11 -10 -10 -9 -9 ------- Run | Yrd Mat Min Mat Min Combat Hostiles Destroyed 74 | . 14 2 48 10 Melee 2 | . . . 2 . Guns 11 | . 11 . . . Cannons 33 | . 1 2 24 6 AOE 28 | . 2 . 22 4 Classes Destroyed 16 | 2 6 . 7 1 Worker 8 | . . . 8 . Builder 4 | . 1 . 3 . Tunneler 2 | 1 . . 1 . Hauler 6 | . 1 . 5 . Recycler 4 | 1 1 1 1 . Mechanic 1 | . . . 1 . Operator 2 | . . . 2 . Watcher 4 | . 2 . 2 . Swarmer 14 | . 3 . 7 4 Grunt 34 | . 9 2 23 . Brawler 4 | . . . 4 . Duelist 1 | . . . 1 . Protector 4 | . . . 4 . Sentry 9 | . . . 9 . Subdweller 2 | . 2 . . . Assembled 6 | . . . . 6 Best Kill Streak 8 | 1 4 3 6 8 Combat Bots Only 8 | . 3 2 5 8 Max Kills in Single Turn 4 | 1 1 1 4 4 Gunslinging . | . . . . . Exploded 4 | . 1 . 4 4 Melee 1 | . . . 1 . Uniques/NPCs Destroyed . | . . . . . Combat | -11 -10 -10 -9 -9 -------- Run | Yrd Mat Min Mat Min Hostile Shots Fired 278 | . 69 . 153 56 Missed 79 | . 15 . 49 15 Damage Taken 3195 | . 679 . 1589 927 Core 473 | . 26 . 172 275 Absorbed by Shields . | . . . . . Regen/Repaired (Parts) 54 | . 54 . . . Core Remaining (%) 94 | 100 . 89 . . Volleys Fired 196 | 6 59 3 110 18 Largest 2 | 2 2 2 2 2 Hottest 83 | 70 70 79 83 83 Shots Fired 352 | 12 104 6 211 19 Gun 100 | 12 88 . . . Cannon 198 | . 8 6 166 18 Launcher 54 | . 8 . 45 1 Special . | . . . . . Kinetic 273 | 6 77 6 166 18 Thermal 25 | 6 19 . . . Explosive 54 | . 8 . 45 1 Electromagnetic . | . . . . . Robot Hit Streak 20 | 4 12 12 20 5 Robot Miss Streak 10 | 3 10 . 5 3 Penetration Max . | . . . . . Secondary Targets . | . . . . . Shots Hit Robots 230 | 6 74 4 135 11 Core Hits 159 | 4 39 4 98 14 Critical Kills . | . . . . . Critical Parts Destroyed . | . . . . . Critical Strikes 8 | . 3 . 4 1 Burn 3 | . 3 . . . Blast 4 | . . . 3 1 Sever 1 | . . . 1 . Melee Attacks 18 | . . . 16 2 Impact 2 | . . . . 2 Slashing 16 | . . . 16 . Piercing . | . . . . . Sneak Attacks 7 | . . . 7 . Combat Hostiles . | . . . . . Follow-up Attacks . | . . . . . Damage Inflicted 7602 | 68 1233 86 5799 416 Guns 869 | 68 801 . . . Cannons 2782 | . 120 86 2376 200 Explosions 3082 | . 297 . 2569 216 Melee 804 | . . . 804 . Ramming 65 | . 15 . 50 . Kinetic 3467 | 18 787 86 2376 200 Thermal 184 | 50 134 . . . Explosive 3082 | . 297 . 2569 216 Electromagnetic . | . . . . . Impact . | . . . . . Slashing 804 | . . . 804 . Piercing . | . . . . . Highest Corruption 5 | . . . 5 5 Average Corruption 4 | . . . 4 5 Corruption Purged . | . . . . . Corruption Blocked . | . . . . . Effects 43 | . . . 40 3 Message Errors 9 | . . . 9 . Matter Fused 13 | . . . 12 1 Heat Flow Errors 2 | . . . 2 . Energy Discharges 4 | . . . 4 . Parts Rejected 2 | . . . . 2 Parts Fused 1 | . . . 1 . Data Loss (minor) 6 | . . . 6 . Data Loss (major) 4 | . . . 4 . Misfires 1 | . . . 1 . Alerts 1 | . . . 1 . Overload Shots . | . . . . . Overflow Damage 291 | . . . 278 13 Projectiles 72 | . . . 72 . Explosions 62 | . . . 49 13 Melee 157 | . . . 157 . Knockbacks 19 | . . 1 18 . Impact . | . . . . . Kinetic 18 | . . 1 17 . Secondary 1 | . . . 1 . Self-Inflicted Damage 237 | . . . 192 45 Shots 8 | . . . 7 1 Rammed 12 | . 3 . 9 . Targets Rammed 13 | . 3 . 10 . Kicked . | . . . . . Crushed 1 | . . . 1 . Highest Temperature 410 | 90 110 66 410 119 Average Temperature 68 | 37 33 29 79 52 Received Heat Transfer 717 | . 153 . 564 . Effects 1 | . . . 1 . Energy Bleed 1 | . . . 1 . Siege Activations . | . . . . . Robots Corrupted . | . . . . . Combat Hostiles . | . . . . . Parts Fried . | . . . . . Impact Corruptions . | . . . . . Robots Melted . | . . . . . Combat Hostiles . | . . . . . Parts Melted 4 | . 4 . . . Heat Transferred 777 | 148 629 . . . Parts Sabotaged . | . . . . . Parts Stolen . | . . . . . Parts Stripped . | . . . . . Power Chain Reactions . | . . . . . Alert | -11 -10 -10 -9 -9 ------- Run | Yrd Mat Min Mat Min Peak Influence 1315 | 10 251 58 1315 593 Initial 512 | . 6 4 . 512 Average 289 | 5 79 2 399 553 Maximum Alert Level 4 | . 1 . 4 2 Low Security (%) 60 | 100 87 100 46 . Level 1 15 | . 12 . 20 . Level 2 8 | . . . 11 100 Level 3 7 | . . . 10 . Level 4 7 | . . . 11 . Level 5 . | . . . . . High Security . | . . . . . Max Security . | . . . . . Sterilizations 1 | . . . 1 . Squads Dispatched 15 | . 4 1 10 . Investigation 6 | . 1 1 4 . Extermination . | . . . . . Reinforcement 4 | . 3 . 1 . Assault 5 | . . . 5 . Garrison . | . . . . . Intercept . | . . . . . Searches Triggered . | . . . . . Construction Impeded . | . . . . . Haulers Reinforced . | . . . . . Active Scanning Responses . | . . . . . Cargo Convoy Interrupts . | . . . . . Stealth | -11 -10 -10 -9 -9 --------- Run | Yrd Mat Min Mat Min Distress Signals 2 | . 1 . 1 . Communications Jammed . | . . . . . Distress Signals . | . . . . . Times Spotted 126 | . 24 3 76 23 Peak Tracking Total 20 | . 3 2 5 20 Tactical Retreats 10 | . 2 . 7 1 Traps | -11 -10 -10 -9 -9 ------- Run | Yrd Mat Min Mat Min Traps Triggered 2 | . . . 2 . Indirectly . | . . . . . Trap Hack Attempts . | . . . . . Triggered . | . . . . . Disarmed 5 | . . . 5 . Reprogrammed . | . . . . . Reused . | . . . . . Traps Extracted . | . . . . . Installed . | . . . . . Triggered . | . . . . . Machines | -11 -10 -10 -9 -9 ---------- Run | Yrd Mat Min Mat Min Machines Disabled 8 | . . . 8 . Max in Single Turn 2 | . . . 2 . Machines Repaired . | . . . . . Machines Dismantled . | . . . . . Machines Sabotaged . | . . . . . Overloaded Fab Kills . | . . . . . Hacking | -11 -10 -10 -9 -9 --------- Run | Yrd Mat Min Mat Min Machines Accessed 21 | . 6 1 14 . Terminals 14 | . 4 . 10 . Fabricators . | . . . . . Repair Stations 1 | . 1 . . . Recycling Units 3 | . 1 . 2 . Scanalyzers 2 | . . . 2 . Garrison Access . | . . . . . Total Hacks 52 | . 17 1 34 . Successful 40 | . 13 1 26 . Failed 10 | . 3 . 7 . Catastrophic . | . . . . . Database Lockouts 2 | . 1 . 1 . Manual 24 | . 9 . 15 . Terminals 36 | . 11 . 25 . Fabricators . | . . . . . Repair Stations 4 | . 4 . . . Recycling Units 4 | . 2 . 2 . Scanalyzers 7 | . . . 7 . Garrison Access . | . . . . . Terminal Hacks 16 | . 6 1 9 . Robot Analysis 4 | . 3 . 1 . Prototype ID Bank 3 | . 1 . 2 . Open Door 1 | . . 1 . . Branch Access Points 1 | . . . 1 . Terminal Index 1 | . 1 . . . Alert Level 3 | . . . 3 . Locate Traps 1 | . 1 . . . Disarm Traps 1 | . . . 1 . Zone Layout 1 | . . . 1 . Fabricator Hacks . | . . . . . Repair Station Hacks 3 | . 3 . . . Scan Component 2 | . 2 . . . Repair 1 | . 1 . . . Recycling Unit Hacks . | . . . . . Scanalyzer 6 | . . . 6 . Insert Component 3 | . . . 3 . Analyze 3 | . . . 3 . Garrison Access Hacks . | . . . . . Unauthorized Hacks 15 | . 4 . 11 . Terminals 11 | . 2 . 9 . Botnet 11 | . 2 . 9 . Fabricators . | . . . . . Repair Stations . | . . . . . Recycling Units 4 | . 2 . 2 . Reject 1 | . 1 . . . Mask 1 | . 1 . . . Tunnel 2 | . . . 2 . Scanalyzers . | . . . . . Garrison Access . | . . . . . Data Cores Recovered 1 | . . . 1 . Used 1 | . . . 1 . Hacking Detections 9 | . 3 . 6 . Full Trace Events 3 | . 1 . 2 . Feedback Events . | . . . . . Feedback Blocked . | . . . . . Robot Schematics Acquired . | . . . . . Robots Built . | . . . . . Authchips . | . . . . . Time . | . . . . . Total Robot Build Rating . | . . . . . Part Schematics Acquired 3 | . . . 3 . Parts Built . | . . . . . Authchips . | . . . . . Time . | . . . . . Total Part Build Rating . | . . . . . Parts Repaired 1 | . 1 . . . Time 26 | . 26 . . . Parts Recycled . | . . . . . Recycled Matter . | . . . . . Retrieved Matter . | . . . . . Retrieved Components . | . . . . . Parts Scanalyzed 3 | . . . 3 . Part Schematics Acquired 3 | . . . 3 . Parts Damaged . | . . . . . Bothacking | -11 -10 -10 -9 -9 ------------ Run | Yrd Mat Min Mat Min Used RIF Installer . | . . . . . Robots Hacked . | . . . . . Non-combat . | . . . . . Combat . | . . . . . Robot Hacks Applied . | . . . . . Relay Couplers Released . | . . . . . Fabnet Peak Effective % . | . . . . . Robots Rewired . | . . . . . Allies Hacked . | . . . . . Hacks Repelled . | . . . . . Allies | -11 -10 -10 -9 -9 -------- Run | Yrd Mat Min Mat Min Total Allies 5 | . . 5 . . Largest Group 3 | . . 3 3 . Highest-Rated Group 65 | . . 65 65 . Highest-Rated Ally 31 | . . 31 31 . Total Orders . | . . . . . Ally Attacks 50 | . . 5 45 . Total Damage 530 | . . 44 486 . Kills 10 | . . . 10 . Allies Corrupted . | . . . . . Allies Melted . | . . . . . Intel | -11 -10 -10 -9 -9 ------- Run | Yrd Mat Min Mat Min Robot Analysis Total 4 | . 3 . 1 . Derelict Logs Recovered 1 | . . 1 . . Drone Launches . | . . . . . Drone Recoveries . | . . . . . Exploration | -11 -10 -10 -9 -9 ------------- Run | Yrd Mat Min Mat Min Turns Passed 9320 | 75 1483 1338 6368 56 Spaces Moved 3273 | 47 725 562 1936 3 Core . | . . . . . Treads 3199 | . 701 562 1936 . Legs 71 | 47 24 . . . Wheels 3 | . . . . 3 Hover . | . . . . . Flight . | . . . . . Fastest Speed 120 | 120 120 160 160 175 Average Speed 246 | 120 158 231 287 180 Slowest Speed 320 | 120 160 240 320 190 Overloaded Moves . | . . . . . Propulsion Burnouts . | . . . . . Robots Hopped . | . . . . . Cave-ins Triggered 1 | . . . . 1 Exploration Rate (%) 60 | 5 98 97 99 3 Regions Visited 4 Branch Regions 2 Pre-discovered Areas 2 | . . . 2 . Known Exits Taken 1 | . . . 1 . Unknown Exits Taken 3 | 1 1 1 . . Scrap Searched 2 | . . 2 . . Spaces Dug 25 | . 24 . . 1 Terrain Destroyed 258 | . 42 . 200 16 Melee 1 | . . . . 1 Projectile 15 | . . . 13 2 AOE 242 | . 42 . 187 13 Terrain Rammed . | . . . . . Walls Destroyed . | . . . . . Machines Disabled . | . . . . . Actions | -11 -10 -10 -9 -9 --------- Run | Yrd Mat Min Mat Min Total 4141 | 54 959 596 2500 32 Wait 491 | . 120 18 353 . Move 3269 | 46 724 561 1935 3 Hop . | . . . . . Pick Up 47 | 1 18 4 24 . Fast Attach 10 | 1 4 . 4 1 Attach 17 | . 4 . 6 7 Detach 3 | . . . 2 1 Swap 32 | . 9 3 20 . Drop 45 | . 18 7 20 . Fire 196 | 6 59 3 110 18 Melee 18 | . . . 16 2 Ram . | . . . . . Kick . | . . . . . Crush 13 | . 3 . 10 . Escape Stasis . | . . . . . Rewire . | . . . . . Trap . | . . . . . Miscellaneous . | . . . . . Route ------- -11/Scrapyard -10/Materials (discovered 5 exits: *Mat x3 / *Min x2) -10/Mines (discovered 2 exits: *Mat x2) -9/Materials (discovered 5 exits: [*Mat x3] / *Min x2) -9/Mines History --------- Turn | Location | Event 1 | -11/Scrapyard | Discovered new exit (range 3) 76 | -11/Scrapyard | Entered Materials 325 | -10/Materials | Build established: Mutant 456 | -10/Materials | Discovered new exit (range 16) 576 | -10/Materials | Derelicts attacked the area 724 | -10/Materials | Repaired Lgt. Armor Plating 756 | -10/Materials | Discovered new exit (range 16) 878 | -10/Materials | Central database locked down 1072 | -10/Materials | Discovered new exit (range 9) 1073 | -10/Materials | Discovered new exit (range 16) 1254 | -10/Materials | Discovered new exit (range 10) 1559 | -10/Materials | Entered Mines 1624 | -10/Mines | Met a Derelict shopkeep closing up shop 1678 | -10/Mines | Discovered new exit (range 14) 2074 | -10/Mines | Assisted by bots powering up and referring to "LRC-V3" 2418 | -10/Mines | A weapon hastily lodged in a ceiling crevice suddenly fell to the ground 2460 | -10/Mines | Learned Materials emergency access door positions 2463 | -10/Mines | Discovered new exit (range 12) 2897 | -10/Mines | Entered Materials 2897 | -9/Materials | Accompanied by 3 allies 2897 | -9/Materials | Evolved 2 slots: Utility x2 2902 | -9/Materials | Led the pair of lost Derelicts to an unsafe place 3204 | -9/Materials | Build established: Hacker-Mutant 3340 | -9/Materials | Central database locked down 3576 | -9/Materials | Discovered new exit (range 15) 3971 | -9/Materials | Identified exit to Mines 4536 | -9/Materials | Discovered new exit (range 16) 6439 | -9/Materials | Discovered new exit (range 16) 7297 | -9/Materials | First assault squad dispatched 8059 | -9/Materials | Build established: Mutant 8496 | -9/Materials | Build established: Scavenger-Mutant 8965 | -9/Materials | Sterilization system engaged 8965 | -9/Materials | Non-combat units ordered to evacuate 9065 | -9/Materials | Combat units ordered to evacuate 9265 | -9/Materials | Ambient heat levels rising (+10) 9265 | -9/Materials | Entered Mines 9266 | -9/Mines | Assembled infested the area 9286 | -9/Mines | Core integrity fell below 50% 9299 | -9/Mines | Core integrity fell below 20% 9306 | -9/Mines | Destroyed 8 combat bots 9322 | -9/Mines | Crushed by falling debris 9322 | -9/Mines | Smashed by cave-in Last Messages --------------- 09285_ as-29262 destroyed. 09285_ Rocket Launcher destroyed. 09285_ Destroyed Rocket Launcher. 09285_ as-15681 destroyed. 09285_ as-41682 destroyed. 09285_ as-99306 destroyed. 09287_ Lgt. Armor Plating destroyed. 09287_ Imp. Light Cannon destroyed. 09288_ Rocket Launcher destroyed. 09293_ The unstable cave ceiling collapses. 09303_ as-86818 suffers critical hit (Blast). 09306_ Hrd. Light Armor Plating destroyed. 09308_ System corrupted: Lgt. Armor Plating rejected. 09309_ Acquired Lgt. Armor Plating. 09311_ as-86818 destroyed. 09317_ as-73936 destroyed. 09320_ Com. Wheel destroyed. 09320_ Lgt. Armor Plating destroyed. 09322_ The unstable cave ceiling collapses. 09322_ Crushed by falling debris. Map ----- +----------------------------------------------------+ | ??????????????????????????????????? | | ??????????????????????????????????? | | ??????????????????????????????????? | | ??????????????????????????????????? | | ??????????????????????????????????? | | ??????????????????????????????????? | | ??????????????????????????????????? | | ??????????????????????????????????? | | ??????????????????????????????????? | | ??????????????????????????????????? | | ????????????????? ????????????????? | | ????????????????? ??????????????? | | ????????????????? ???????????????? | | ???????????????? ???????????????? | | ???????????????? ????????????????? | | ???????????????? ????????????????? | | ??????????????? #????????????????? | | ??????????????? #????????????????? | | ??????????????? #????????????????? | | ???????????#### #????????????????? | | ??????????## # ###??????????????? | | ?????????## % #??????????????? | | ?????????# * #???????????????? | | ??????????# *%% [ #???????????????? | | ?????????###% ##??????????????? | | ?????????#@# ##??????????????? | | ?????????# aa ###??????????????? | | ?????????#########????????????????? | | ??????????????????????????????????? | | ??????????????????????????????????? | | ??????????????????????????????????? | | ??????????????????????????????????? | | ??????????????????????????????????? | | ??????????????????????????????????? | | ??????????????????????????????????? | | ??????????????????????????????????? | | ??????????????????????????????????? | | ??????????????????????????????????? | | ??????????????????????????????????? | | ??????????????????????????????????? | | ??????????????????????????????????? | | ??????????????????????????????????? | | ??????????????????????????????????? | | ??????????????????????????????????? | | ??????????????????????????????????? | | ??????????????????????????????????? | | ??????????????????????????????????? | | ??????????????????????????????????? | | ??????????????????????????????????? | | ??????????????????????????????????? | +----------------------------------------------------+ Best States ------------- Heat Dissipation 28 Energy Generation 14 Energy Capacity 280 Matter Stores 300 Matter Capacity 300 Sight Range 16 Terrain Scan Range 16 Terrain Scan Density 85 Armor Coverage 300 Evasion (%) 55 Recoil Reduction 2 Offensive Hacking 20 Item Schematics ----------------- Imp. Signal Interpreter | -9/Materials | Scanalyzed Hpw. Tractor Beam | -9/Materials | Scanalyzed Hcp. Storage Unit | -9/Materials | Scanalyzed Robot Schematics ------------------ None Fabricated ------------ Nothing Alien Tech Used ----------------- None Achievements -------------- None Challenges ------------ None Game ------ Seed AbsorptionOmegaSpiker Manual? 0 Play Time 00:40:38 Cumulative 153.4 hours Start 2024.09.23 @ 02:43:03 End 2024.09.23 @ 03:24:36 Sessions 1 Manual Loads 0 Difficulty Rogue Special Mode None Game No. 203 Rogue 203 Adventurer 0 Explorer 0 Win Type - Total 1 Types 1/0/0/0/0/0/0/0/0 Lore% 50 Gallery% 61 Achievement% 49 Wizard Run 0 Options --------- Layout 0 ASCII 0 Keyboard 0 Movement Mouse Keybinds 1 Fullscreen 2 Font 18/TerminusBold Map View 76x50 Zoom Use 0% Tactical HUD 1 Map Filters NONE Filters NONE Steam 0 RUN: 82554ff2-d9c3-4124-8e46-ba28a5b24a4f